Cogmind - Beta 9.3 @@@ ROGUE MODE // 2020.01.06 @ 18:23:04 // Winter2019/RPGLIKE Player: FontPeg Result: Destroyed by G-47 Trooper with Particle Gun Performance ------------- Evolutions (0) 0 Regions Visited (1) 200 Robots Destroyed (9) 45 Value Destroyed (108) 108 Prototype IDs (4) 80 Alien Tech Used (0) 0 Bonus (0) 0 TOTAL SCORE: 433 Bonus ------- None Cogmind --------- Core Integrity 0/600 Matter 194/300 Energy 250/250 System Corruption 1% Temperature Cool (15) Movement Rolling (80) Location -10/Materials Parts ------- > --- POWER (1) -------- Ion Engine > --- PROPULSION (1) --- Wheel > --- UTILITY (3) ------ Structural Scanner Signal Interpreter Improved Targeting Computer > --- WEAPON (3) ------- EM Pulse Gun Grenade Launcher > --- INVENTORY (1) ---- Mining Claw Peak State ------------ > --- POWER ------------ Ion Engine > --- PROPULSION ------- Wheel > --- UTILITY ---------- Structural Scanner Signal Interpreter Improved Targeting Computer > --- WEAPON ----------- EM Pulse Gun EM Pulse Gun Mining Claw > --- INVENTORY -------- Grenade Launcher [Rating: 9] Favorites ----------- Power Ion Engine Engine Ion Engine Propulsion Light Treads Treads Light Treads Wheel Compact Wheel Utility Signal Interpreter Device Structural Scanner Processor Signal Interpreter Weapon EM Pulse Gun Energy Gun EM Pulse Gun Ballistic Gun Assault Rifle Launcher Grenade Launcher Special Weapon Mining Laser Slashing Weapon Mining Claw Build | -11 -10 ------- Run | Scr Mat Slots Evolved 4 | 4 . Power . | . . Propulsion . | . . Utility 2 | 2 . Weapon 2 | 2 . Parts Attached 14 | 9 5 Power 1 | 1 . Engine 1 | 1 . Core . | . . Reactor . | . . Propulsion 4 | 4 . Treads 2 | 2 . Leg . | . . Wheel 2 | 2 . Hover . | . . Flight . | . . Utility 3 | . 3 Device 1 | . 1 Storage . | . . Processor 2 | . 2 Hackware . | . . Protection . | . . Artifact . | . . Weapon 6 | 4 2 Energy Gun 2 | 2 . Energy Cannon . | . . Ballistic Gun 1 | 1 . Ballistic Cannon . | . . Launcher 1 | . 1 Special Weapon 1 | 1 . Impact Weapon . | . . Slashing Weapon 1 | . 1 Piercing Weapon . | . . Special Melee Weapon . | . . Unidentified Prototypes . | . . Parts Lost 1 | . 1 Power . | . . Propulsion . | . . Utility . | . . Weapon 1 | . 1 Highest Loss Streak 1 | . 1 Average Slot Usage (%) 83 | . 83 Engine 12 | . 12 Wheel 12 | . 12 Device 5 | . 5 Processor 15 | . 15 Energy Gun 23 | . 23 Launcher 3 | . 3 Special Weapon 3 | . 3 Slashing Weapon 5 | . 5 Naked Turns . | . . Heaviest Build 13 | 11 13 Greatest Support 25 | 25 15 Greatest Overweight (x) 1 | 1 . Average Overweight (x) . | . . Largest Inventory Capacity 1 | 1 1 Average Capacity . | . 1 Most Carried 1 | 1 1 Average Carried . | . 1 Final Capacity 1 | 1 1 Final Carried 1 | 1 1 Class Distribution -------------------- 97% | Mutant Dominant Class ---------------- Mutant | -10/Materials Resources | -11 -10 ----------- Run | Scr Mat Matter Collected 302 | 283 19 Remotely . | . . Salvage Created 215 | 27 188 Parts 19 | 3 16 Haulers Intercepted . | . . Recyclers Shooed . | . . Parts Field Recycled . | . . Retrieved Matter . | . . Parts Self-Destructed . | . . Prevented . | . . Kills | -11 -10 ------- Run | Scr Mat Combat Hostiles Destroyed 4 | . 4 Guns 1 | . 1 AOE 3 | . 3 Classes Destroyed 6 | 1 5 Worker 2 | . 2 Tunneler 1 | 1 . Recycler 1 | . 1 Watcher 1 | . 1 Swarmer 3 | . 3 Grunt 1 | . 1 Best Kill Streak 5 | 1 5 Combat Bots Only 3 | . 3 Max Kills in Single Turn 2 | 1 2 Gunslinging . | . . Exploded 1 | . 1 Melee . | . . Uniques/NPCs Destroyed . | . . Combat | -11 -10 -------- Run | Scr Mat Damage Taken 722 | . 722 Core 610 | . 610 Absorbed by Shields . | . . Redirected to Core 381 | . 381 Core Remaining (%) 100 | 100 . Volleys Fired 19 | 9 10 Largest 3 | 3 3 Hottest 180 | 100 180 Shots Fired 34 | 11 23 Gun 17 | 3 14 Cannon . | . . Launcher 7 | . 7 Special 10 | 8 2 Kinetic 1 | 1 . Thermal 10 | 8 2 Explosive 7 | . 7 Electromagnetic 16 | 2 14 Robot Hit Streak 3 | 2 3 Robot Miss Streak 5 | . 5 Penetration Max . | . . Secondary Targets . | . . Shots Hit Robots 9 | 2 7 Core Hits 13 | 1 12 Critical Hits . | . . Critical Kills . | . . Critical Parts Destroyed . | . . Melee Attacks 13 | . 13 Impact . | . . Slashing 13 | . 13 Piercing . | . . Sneak Attacks 1 | . 1 Combat Hostiles . | . . Follow-up Attacks . | . . Damage Inflicted 613 | 24 589 Guns 97 | 24 73 Cannons . | . . Explosions 442 | . 442 Melee 74 | . 74 Ramming . | . . Kinetic . | . . Thermal 60 | . 60 Explosive 382 | . 382 Electromagnetic 97 | 24 73 Impact . | . . Slashing 74 | . 74 Piercing . | . . Highest Corruption 1 | . 1 Average Corruption 1 | . 1 Corruption Purged . | . . Overload Shots . | . . Overflow Damage 21 | . 21 Projectiles . | . . Explosions 21 | . 21 Melee . | . . Knockbacks . | . . Impact . | . . Kinetic . | . . Secondary . | . . Self-Inflicted Damage 60 | . 60 Shots 2 | . 2 Rammed . | . . Targets Rammed . | . . Kicked . | . . Crushed . | . . Highest Temperature 102 | 40 102 Average Temperature 24 | 15 31 Received Heat Transfer 63 | . 63 Siege Activations . | . . Robots Corrupted . | . . Combat Hostiles . | . . Parts Fried . | . . Impact Corruptions . | . . Robots Melted . | . . Combat Hostiles . | . . Parts Melted . | . . Heat Transferred 100 | . 100 Parts Sabotaged . | . . Parts Stolen . | . . Parts Stripped . | . . Power Chain Reactions 1 | . 1 Missiles Intercepted . | . . Alert | -11 -10 ------- Run | Scr Mat Peak Influence 179 | 5 179 Average Influence 4 | . 41 Maximum Alert Level . | . . Low Security (%) 100 | 100 100 Level 1 . | . . Level 2 . | . . Level 3 . | . . Level 4 . | . . Level 5 . | . . High Security . | . . Max Security . | . . Squads Dispatched . | . . Investigation . | . . Extermination . | . . Reinforcement . | . . Assault . | . . Garrison . | . . Intercept . | . . Construction Impeded . | . . Haulers Reinforced . | . . Stealth | -11 -10 --------- Run | Scr Mat Distress Signals 3 | . 3 Communications Jammed . | . . Distress Signals . | . . Times Spotted 14 | . 14 Peak Tracking Total 8 | . 8 Tactical Retreats 2 | . 2 Traps | -11 -10 ------- Run | Scr Mat Traps Triggered 1 | . 1 Indirectly . | . . Trap Hack Attempts . | . . Triggered . | . . Disarmed . | . . Reprogrammed . | . . Reused . | . . Traps Extracted . | . . Installed . | . . Triggered . | . . Machines | -11 -10 ---------- Run | Scr Mat Machines Disabled . | . . Max in Single Turn . | . . Machines Sabotaged . | . . Garrisons Compromised . | . . Overloaded Fab Kills . | . . Fab Network Shutdowns . | . . Hacking | -11 -10 --------- Run | Scr Mat Machines Accessed 3 | . 3 Terminals 3 | . 3 Fabricators . | . . Repair Stations . | . . Recycling Units . | . . Scanalyzers . | . . Garrison Access . | . . Total Hacks 8 | . 8 Successful 3 | . 3 Failed 5 | . 5 Catastrophic 2 | . 2 Database Lockouts . | . . Manual 4 | . 4 Terminals 8 | . 8 Fabricators . | . . Repair Stations . | . . Recycling Units . | . . Scanalyzers . | . . Garrison Access . | . . Terminal Hacks 2 | . 2 Prototype ID Bank 2 | . 2 Fabricator Hacks . | . . Repair Station Hacks . | . . Recycling Unit Hacks . | . . Scanalyzer . | . . Garrison Access Hacks . | . . Unauthorized Hacks 4 | . 4 Terminals 1 | . 1 Botnet 1 | . 1 Fabricators . | . . Repair Stations . | . . Recycling Units . | . . Scanalyzers . | . . Garrison Access . | . . Data Cores Recovered . | . . Used . | . . Hacking Detections 3 | . 3 Full Trace Events . | . . Feedback Events . | . . Feedback Blocked . | . . Robot Schematics Acquired . | . . Robots Built . | . . Matter . | . . Time . | . . Total Robot Build Rating . | . . Part Schematics Acquired . | . . Parts Built . | . . Matter . | . . Time . | . . Total Part Build Rating . | . . Parts Repaired . | . . Time . | . . Parts Recycled . | . . Recycled Matter . | . . Retrieved Matter . | . . Retrieved Components . | . . Parts Scanalyzed . | . . Part Schematics Acquired . | . . Parts Damaged . | . . Bothacking | -11 -10 ------------ Run | Scr Mat Used RIF Installer . | . . Robots Hacked . | . . Non-combat . | . . Combat . | . . Robot Hacks Applied . | . . Relay Couplers Released . | . . Robots Rewired . | . . Allies Hacked . | . . Hacks Repelled . | . . Allies | -11 -10 -------- Run | Scr Mat Total Allies . | . . Largest Group . | . . Highest-Rated Group . | . . Highest-Rated Ally . | . . Total Orders . | . . Ally Attacks . | . . Total Damage . | . . Kills . | . . Allies Corrupted . | . . Allies Melted . | . . Intel | -11 -10 ------- Run | Scr Mat Robot Analysis Total . | . . Derelict Logs Recovered . | . . Drone Launches . | . . Drone Recoveries . | . . Exploration | -11 -10 ------------- Run | Scr Mat Turns Passed 4009 | 3655 354 Spaces Moved 3087 | 2754 333 Core 72 | 72 . Treads 1291 | 1291 . Legs . | . . Wheels 1724 | 1391 333 Hover . | . . Flight . | . . Fastest Speed 50 | 50 80 Average Speed 122 | 127 80 Slowest Speed 160 | 160 80 Overloaded Moves . | . . Propulsion Burnouts . | . . Robots Hopped . | . . Cave-ins Triggered 1 | . 1 Exploration Rate (%) 65 | 84 47 Regions Visited 1 Branch Regions . Pre-discovered Areas . | . . Known Exits Taken . | . . Unknown Exits Taken 1 | 1 . Scrap Searched . | . . Spaces Dug 12 | 1 11 Terrain Destroyed 61 | 2 59 Melee 11 | . 11 Projectile 4 | 2 2 AOE 46 | . 46 Actions | -11 -10 --------- Run | Scr Mat Total 3237 | 2867 370 Wait 95 | 89 6 Move 3085 | 2753 332 Hop . | . . Pick Up 5 | 4 1 Fast Attach 9 | 5 4 Attach 3 | 3 . Detach . | . . Swap 2 | 1 1 Drop 5 | 3 2 Fire 19 | 9 10 Melee 13 | . 13 Ram . | . . Kick . | . . Crush . | . . Escape Stasis 1 | . 1 Rewire . | . . Trap . | . . Miscellaneous . | . . Route ------- -11/Scrapyard -10/Materials (discovered 2 exits: *Mat / [*Min]) History --------- Turn | Location | Event 5 | -11/Scrapyard | Upgraded with Utility slot (x2) 5 | -11/Scrapyard | Upgraded with Weapon slot (x2) 10 | -11/Scrapyard | Discovered new exit (range 15) 3656 | -11/Scrapyard | Entered Materials 3661 | -10/Materials | Build established: Mutant 3749 | -10/Materials | Discovered new exit (range 6) 3811 | -10/Materials | Crushed by falling debris 3812 | -10/Materials | Core integrity fell below 50% 3826 | -10/Materials | Discovered new exit (range 10) 3853 | -10/Materials | Identified exit to Materials 3985 | -10/Materials | Core integrity fell below 20% 4010 | -10/Materials | Destroyed by G-47 Trooper with Particle Gun Last Messages --------------- 03950_ U-05 Engineer lays Concrete. 03950_ K-01 Serf collects debris. 03951_ U-05 Engineer lays Concrete. 03954_ K-01 Serf collects debris. 03954_ U-05 Engineer lays Concrete. 03955_ U-05 Engineer builds a Wall. 03955_ U-05 Engineer lays Concrete. 03957_ K-01 Serf cleans the Terminal. 03957_ U-05 Engineer lays Concrete. 03958_ U-05 Engineer builds a Wall. 03960_ K-01 Serf cleans the Terminal. 03961_ K-01 Serf collects debris. 03963_ W-16 Scout sends out distress signal. 03965_ K-01 Serf collects debris. 03969_ W-16 Scout sends out distress signal. 03980_ EM Pulse Gun destroyed. 03983_ U-05 Engineer lays Concrete. 03995_ S-10 Pest destroyed. 03998_ K-01 Serf destroyed. 04008_ S-10 Pest destroyed. Map ----- +----------------------------------------------------+ | ??????? #??????# ????? ?????????? | | ???????# #??????# ###### ####??????? | | ???????# ######## !#??????? | | ???????# # # #??????? | | ??????## ????# """ # #??????? | | ??????# #???????# """ # ^ """ #??????? | | ??????# #???????# """ #""" """ #??????? | | ??????# #???????# #"R^ """ #??????? | | ????### #???????# [ #""" [ #####??? | | ????# ##########+# """ !! #??? | | ##### g !!! #??? | | T = % !! #??? | | ##### %= ###################??? | | ????# ########### *%*g #???????????????????? | | ????#######?????????## g #???????????????????? | | ??????????????????????# ##???????????????????? | | ?????????????????????? [= ######??????????????? | | ?#######????????####### [ #??????????????? | | ## #????????# #??????????????? | | ########## #??????????????? | | ## # # #??????????????? | | # | ########## # # "T" #??????????????? | | ?# #????????# # # """ #??????????????? | | ?## ##????????# # ########??????????????? | | ??# #?????????#####+## #?????????????????????? | | ??# #?????????# # @ #?????????????????????? | | ??# #?????????#"" # #?????????????????????? | | ?## ##????????#"Y ! + #???????????#######???? | | ## #????????#"" # #???????????# !#???? | | #????????# !!#^k ############# #???? | | ! #????????# * ! # ## #???? | | #????????#################### ## #???? | | ## #???????????????????????????# ## #???? | | ?#######???????????????????????????# ## #???? | | ??????????????????????????????????## ## ?????? | | ??????????????????????????????????# ##+######## | | ??????????????????????????????????# T" # | | ??????????????????????????????????# " # | | ??????????????????????????????????# ######## # | | ??????????????????????????????######+#######??# | | ??????????????????????????????# #??#!!! | | ??????????????????????????????# """ ]#??#!!! | | ??????????????????????????????# """ #??#### | | ??????????????????????????????# """ "Y" #?????? | | ??????????????????????????????# """ #?????? | | ??????????????????????????????##############?????? | | | | | | | | | +----------------------------------------------------+ Best States ------------- Heat Dissipation 25 Energy Generation 10 Energy Capacity 250 Matter Stores 300 Matter Capacity 300 Sight Range 16 Terrain Scan Density 10 Evasion (%) 50 Targeting Accuracy 6 Recoil Reduction 1 Item Schematics ----------------- None Robot Schematics ------------------ None Fabricated ------------ Nothing Alien Tech Used ----------------- None Achievements -------------- None Challenges ------------ None RPGLIKE | -11 -10 --------- Run | Scr Mat Levels Raised . | . . XP Earned 3595 | 3000 595 XP Spent 2950 | 2950 . Upgrades 6 | 6 . Utility Slot 2 | 2 . Weapon Slot 2 | 2 . Mass Support 1 | 1 . Inventory Capacity 1 | 1 . Protomatter Created 13 | . 13 Protomatter Decayed . | . . Game ------ Seed MolecularDirtyProtomatter Manual? 0 Play Time 00:18:27 Cumulative 46.5 hours Start 2020.01.06 @ 18:09:23 End 2020.01.06 @ 18:23:04 Sessions 1 Manual Loads 0 Difficulty Rogue Special Mode Winter2019/RPGLIKE Game No. 69 Rogue 69 Adventurer 0 Explorer 0 Win Type - Total 0 Types 0/0/0/0/0/0/0 Lore% 26 Gallery% 39 Achievement% 30 Wizard Run 0 Options --------- ASCII 0 Keyboard 0 Movement Mouse Keybinds 0 Fullscreen 1 Font 18/X11 Map View 76x50 Tactical HUD 1 Map Filters NONE Filters NONE Steam 1 RUN: 913c61c1-ff1c-4eab-b7ee-fd84aaa23bbf